fUST/lending_fUST_20240923
["ID","MTS","AMOUNT","RATE_DAILY","PERIOD"]
[338915272,1727070649537,-500.0,0.00038356,120]
[338915273,1727070649547,-510.44215707,0.00038356,120]
[338915274,1727070649556,-500.0,0.00038356,120]
[338915275,1727070649565,-500.59391128,0.00038356,120]
[338915276,1727070649574,-500.0,0.00038356,120]
[338915277,1727070649583,-507.33086002,0.00038356,120]
[338915278,1727070649593,-501.61573054,0.00038356,120]
[338915279,1727070649602,-505.16673474,0.00038356,120]
[338915280,1727070649612,-318.55772631,0.00038356,120]
[338915281,1727070649621,-500.5462618,0.00038356,120]
[338915282,1727070649631,-502.55304553,0.00038356,120]
[338915283,1727070649640,-500.0,0.00038356,120]
[338915284,1727070649649,-501.20286168,0.00038356,120]
[338915285,1727070649658,-500.440487,0.00038356,120]
[338915286,1727070649667,-501.60841413,0.00038356,120]
[338915287,1727070649677,-500.0,0.00038356,120]
[338915288,1727070649686,-502.34533216,0.00038356,120]
[338915289,1727070649695,-460.97266614,0.00038356,120]
[338915290,1727070649704,-500.0,0.00038356,120]
[338915291,1727070649714,-507.07333166,0.00038356,120]
[338915292,1727070649723,-500.0,0.00038356,5]
[338915293,1727070649732,-500.0,0.00038356,5]
[338915294,1727070649759,-500.0,0.00038356,5]
[338915295,1727070649768,-213.59327095,0.00038356,5]
[338915296,1727070649778,-364.75040147,0.00038356,120]
[338915297,1727070649787,-433.3664887,0.00038356,120]
[338915298,1727070649805,-66.6335113,0.00038356,120]
[338915299,1727070649815,-553.6417045,0.00038356,120]
[338915300,1727070649824,-509.86434042,0.00038356,120]
[338915301,1727070649833,-504.14876369,0.00038356,120]
[338915302,1727070649842,-500.0,0.00038356,120]
[338915303,1727070649851,-503.70549379,0.00038356,120]
[338915304,1727070649860,-503.74218337,0.00038356,120]
[338915305,1727070649868,-504.50891844,0.00038356,120]
[338915306,1727070649878,-500.0,0.00038356,120]
[338915307,1727070649887,-500.42363053,0.00038356,120]
[338915308,1727070649897,-500.0,0.00038356,120]
[338915309,1727070649906,-504.80646246,0.00038356,120]
[338915310,1727070649914,-503.01251893,0.00038356,120]
[338915311,1727070649923,-500.0,0.00038356,120]
[338915312,1727070649931,-517.50886468,0.00038356,120]
[338915313,1727070649940,-500.0,0.00038356,120]
[338915314,1727070649949,-500.0,0.00038356,120]
[338915315,1727070649958,-500.0,0.00038356,120]
[338915316,1727070649968,-500.0,0.00038356,120]
[338915317,1727070649978,-500.0,0.00038356,120]
[338915318,1727070649986,-500.0,0.00038356,120]
[338915319,1727070649995,-500.0,0.00038356,120]
[338915320,1727070650005,-507.1183148,0.00038356,120]
[338915321,1727070650014,-503.89819243,0.00038356,120]
[338915322,1727070650023,-501.51074298,0.00038356,120]
[338915323,1727070650032,-511.048579,0.00038356,120]
[338915324,1727070650042,-508.95234347,0.00038356,120]
[338915325,1727070650051,-500.0,0.00038356,120]
[338915326,1727070650060,-500.0,0.00038356,120]
[338915327,1727070650069,-502.18728604,0.00038356,120]
[338915328,1727070650078,-500.0,0.00038356,120]
[338915329,1727070650087,-500.0,0.00038356,2]
[338915330,1727070650097,-500.0,0.00038356,30]
[338915331,1727070650106,-500.0,0.00038356,120]
[338915332,1727070650115,-503.68562992,0.00038356,120]
[338915333,1727070650125,-503.97388739,0.00038356,120]
[338915334,1727070650134,-500.0,0.00038356,120]
[338915335,1727070650144,-510.19292624,0.00038356,120]
[338915336,1727070650153,-522.18391143,0.00038356,120]
[338915337,1727070650162,-500.0,0.00038356,120]
[338915338,1727070650171,-521.60709427,0.00038356,120]
[338915339,1727070650181,-500.0,0.00038356,120]
[338915340,1727070650190,-519.75297948,0.00038356,120]
[338915341,1727070650199,-500.0,0.00038356,120]
[338915342,1727070650208,-514.59500507,0.00038356,120]
[338915343,1727070650218,-500.0,0.00038356,120]
[338915344,1727070650227,-500.0,0.00038356,120]
[338915345,1727070650304,-500.0,0.00038356,120]
[338915346,1727070650314,-500.0,0.00038356,120]
[338915347,1727070650323,-500.0,0.00038356,120]
[338915348,1727070650332,-500.0,0.00038356,120]
[338915349,1727070650342,-503.44653198,0.00038356,120]
[338915350,1727070650351,-583.13717935,0.00038356,120]
[338915351,1727070650360,-500.0,0.00038356,7]
[338915352,1727070650370,-500.0,0.00038356,120]
[338915353,1727070650379,-500.0,0.00038356,120]
[338915354,1727070650389,-526.25923206,0.00038356,120]
[338915355,1727070650398,-502.22498155,0.00038356,120]
[338915356,1727070650407,-534.39042558,0.00038356,120]
[338915357,1727070650416,-500.0,0.00038356,120]
[338915358,1727070650427,-500.0,0.00038356,120]
[338915359,1727070650436,-511.75322388,0.00038356,120]
[338915360,1727070650446,-501.77286251,0.00038356,120]
[338915361,1727070650455,-502.70748689,0.00038356,120]
[338915362,1727070650465,-500.0,0.00038356,120]
[338915363,1727070650475,-200.0,0.00038356,120]
[338915364,1727070650484,-522.58632619,0.00038356,120]
[338915365,1727070650494,-508.22800768,0.00038356,120]
[338915366,1727070650503,-508.53147088,0.00038356,120]
[338915367,1727070650512,-500.0,0.00038356,120]
[338915368,1727070650521,-511.03689584,0.00038356,120]
[338915369,1727070650532,-500.0,0.00038356,120]
[338915370,1727070650540,-500.0,0.00038356,120]
[338915371,1727070650550,-500.0,0.00038356,120]
[338915372,1727070650559,-500.0,0.00038356,120]
[338915373,1727070650568,-500.0,0.00038356,120]
[338915374,1727070650578,-500.0,0.00038356,120]
[338915375,1727070650587,-500.0,0.00038356,120]
[338915376,1727070650596,-500.0,0.00038356,120]
[338915377,1727070650605,-500.0,0.00038356,120]
[338915378,1727070650615,-500.0,0.00038356,120]
[338915379,1727070650624,-500.0,0.00038356,120]
[338915380,1727070650633,-500.0,0.00038356,120]
[338915381,1727070650643,-500.0,0.00038356,120]
[338915382,1727070650652,-500.0,0.00038356,120]
[338915383,1727070650661,-500.0,0.00038356,120]
[338915384,1727070650671,-500.0,0.00038356,120]
[338915385,1727070650681,-500.0,0.00038356,120]
[338915386,1727070650691,-500.0,0.00038356,120]
[338915387,1727070650700,-500.0,0.00038356,120]
[338915388,1727070650709,-500.0,0.00038356,120]
[338915389,1727070650719,-500.0,0.00038356,120]
[338915390,1727070650728,-500.0,0.00038356,120]
[338915391,1727070650737,-565.03286919,0.00038356,120]
[338915392,1727070650747,-507.32431932,0.00038356,120]
[338915393,1727070650756,-512.95711833,0.00038356,120]
[338915394,1727070650767,-515.50571011,0.00038356,120]
[338915395,1727070650777,-500.0,0.00038356,120]
[338915396,1727070650796,-645.6717481,0.00038356,120]
[338915397,1727070650806,-516.24530444,0.00038356,120]
[338915398,1727070650815,-500.0,0.00038356,120]
[338915399,1727070650825,-500.0,0.00038356,10]
[338915400,1727070650835,-500.0,0.00038356,120]
[338915401,1727070650844,-503.93373326,0.00038356,120]
[338915402,1727070650854,-504.74065156,0.00038356,120]
[338915403,1727070650863,-531.75419831,0.00038356,120]
[338915404,1727070650873,-500.0,0.00038356,120]
[338915405,1727070650883,-500.0,0.00038356,120]
[338915406,1727070650896,-500.0,0.00038356,120]
[338915407,1727070650904,-500.0,0.00038356,120]
[338915408,1727070650914,-508.64339541,0.00038356,120]
[338915409,1727070650923,-500.0,0.00038356,120]
[338915410,1727070650933,-500.3881819,0.00038356,120]
[338915411,1727070650943,-500.0,0.00038356,120]
[338915412,1727070650952,-500.0,0.00038356,120]
[338915413,1727070650961,-500.0,0.00038356,120]
[338915414,1727070650970,-500.91568616,0.00038356,120]
[338915415,1727070650982,-520.16308511,0.00038356,120]
[338915416,1727070650991,-500.0,0.00038356,120]
[338915417,1727070651000,-500.0,0.00038356,120]
[338915418,1727070651010,-500.0,0.00038356,120]
[338915419,1727070651019,-500.0,0.00038356,120]
[338915420,1727070651031,-502.6631964,0.00038356,120]
[338915421,1727070651041,-500.0,0.00038356,120]
[338915422,1727070651050,-500.0,0.00038356,120]
[338915423,1727070651059,-500.0,0.00038356,120]
[338915424,1727070651069,-500.0,0.00038356,120]
[338915425,1727070651078,-500.9994449,0.00038356,120]
[338915426,1727070651087,-500.0,0.00038356,120]
[338915427,1727070651097,-504.65477216,0.00038356,120]
[338915428,1727070651106,-500.0,0.00038356,120]
[338915429,1727070651115,-500.0,0.00038356,120]
[338915430,1727070651124,-500.0,0.00038356,120]
[338915431,1727070651134,-500.0,0.00038356,120]
[338915432,1727070651143,-500.0,0.00038356,120]
[338915433,1727070651152,-501.11892312,0.00038356,120]
[338915434,1727070651161,-519.23827388,0.00038356,120]
[338915435,1727070651170,-500.0,0.00038356,120]
[338915436,1727070651179,-502.74162897,0.00038356,120]
[338915437,1727070651188,-500.0,0.00038356,120]
[338915438,1727070651197,-500.0,0.00038356,120]
[338915439,1727070651206,-500.0,0.00038356,120]
[338915440,1727070651215,-508.54273264,0.00038356,120]
[338915441,1727070651224,-542.76,0.00038356,120]
[338915442,1727070651233,-508.08907482,0.00038356,120]
[338915443,1727070651243,-501.92571425,0.00038356,120]
[338915444,1727070651252,-500.0,0.00038356,30]
[338915445,1727070651316,-233.20223871,0.00038356,120]
[338915446,1727070651326,-515.03029667,0.00038356,120]
[338915447,1727070651335,-500.0,0.00038356,120]
[338915448,1727070651345,-500.78346744,0.00038356,120]
[338915449,1727070651355,-500.0,0.00038356,120]
[338915450,1727070651364,-500.0,0.00038356,120]
[338915451,1727070651373,-500.0,0.00038356,120]
[338915452,1727070651382,-516.19955667,0.00038356,120]
[338915453,1727070651391,-500.0,0.00038356,120]
[338915454,1727070651401,-500.0,0.00038356,7]
[338915455,1727070651410,-500.0,0.00038356,7]
[338915456,1727070651419,-507.51377223,0.00038356,120]
[338915457,1727070651428,-1008.74464207,0.00038356,120]
[338915458,1727070651437,-500.0,0.00038356,120]
[338915459,1727070651446,-512.46026025,0.00038356,120]
[338915460,1727070651455,-507.52730877,0.00038356,120]
[338915461,1727070651464,-500.86720835,0.00038356,120]
[338915462,1727070651474,-526.44963118,0.00038356,120]
[338915463,1727070651483,-500.0,0.00038356,120]
[338915464,1727070651492,-500.0,0.00038356,120]
[338915465,1727070651502,-45.25708622,0.00038356,120]
[338915466,1727070651562,-469.79905199,0.00038356,120]
[338915467,1727070651571,-325.45369408,0.00038356,120]
[338915468,1727070651595,-174.54630592,0.00038356,120]
[338915469,1727070651604,-497.24286213,0.00038356,120]
[338915470,1727070651727,-77.00831508,0.00035046,2]
[338915471,1727070652133,-4062.10954237,0.00035046,2]
[338915474,1727070792819,3000.0,0.000216,2]
[338915475,1727070793403,3000.0,0.0002161,2]
[338915476,1727070793770,3000.0,0.0002162,2]
[338915477,1727070794077,3000.0,0.0002163,2]
[338915478,1727070794400,5363.077297,0.0002164,2]
[338915483,1727071094686,5148.95,0.00022,2]
[338915488,1727071393361,150.0,0.000216,2]
[338915493,1727071625162,-178.20251606,0.00025428,2]
[338915494,1727071650116,-451.59060826,0.00025428,2]
[338915495,1727071650140,-165.662508,0.00026649,2]
[338915496,1727071650164,-165.662508,0.00026723,2]
[338915497,1727071650186,-165.662508,0.00026796,2]
[338915498,1727071650210,-165.662508,0.00026869,2]
[338915499,1727071650232,-165.662508,0.00026942,2]
[338915500,1727071650258,-165.662508,0.00027015,2]
[338915501,1727071650280,-165.662508,0.00027088,2]
[338915502,1727071650302,-165.662508,0.00027161,2]
[338915503,1727071650322,-165.662508,0.00027234,2]
[338915504,1727071650343,-165.662508,0.00027307,2]
[338915505,1727071650364,-165.662508,0.0002738,2]
[338915506,1727071650384,-111.12180374,0.00027397,2]
[338915517,1727071740419,1346.92409535,0.00022001,2]
[338915518,1727071749231,-388.87819626,0.00027397,2]
[338915519,1727071749253,-165.662508,0.00027454,2]
[338915520,1727071749275,-165.662508,0.00027527,2]
[338915521,1727071749299,-165.662508,0.000276,2]
[338915522,1727071749320,-165.662508,0.00027673,2]
[338915523,1727071749341,-165.662508,0.00027746,2]
[338915524,1727071749362,-300.0,0.00027767,2]
[338915525,1727071749385,-300.0,0.00027767,2]
[338915526,1727071749406,-509.40710039,0.00027768,2]
[338915527,1727071750138,-13694.92746897,0.00027768,2]
[338915529,1727071752162,-10695.66543064,0.00027768,2]
[338915530,1727071752184,-165.662508,0.00027819,2]
[338915531,1727071752205,-237.1331673,0.00027876,2]
[338915532,1727071752227,-165.662508,0.00027892,2]
[338915533,1727071752248,-2564.5867576,0.00027926,2]
[338915534,1727071772201,-435.4132424,0.00027926,2]
[338915535,1727071772224,-165.662508,0.00027965,2]
[338915536,1727071772245,-406.64101991,0.00027969,2]
[338915537,1727071772267,-500.0,0.00027969,2]
[338915538,1727071772288,-500.0,0.00027969,2]
[338915539,1727071772313,-500.0,0.00027969,2]
[338915540,1727071772339,-500.0,0.00027969,2]
[338915541,1727071772361,-500.0,0.00027969,2]
[338915542,1727071772383,-500.0,0.00027969,2]
[338915543,1727071772405,-500.0,0.00027969,2]
[338915544,1727071772427,-500.0,0.00027969,2]
[338915545,1727071772448,-460.31760974,0.00027969,2]
[338915546,1727071773281,-39.68239026,0.00027969,2]
[338915547,1727071773305,-500.0,0.00027969,2]
[338915548,1727071773331,-500.0,0.00027969,2]
[338915549,1727071773364,-500.0,0.00027969,2]
[338915550,1727071773387,-500.0,0.00027969,2]
[338915551,1727071773409,-500.0,0.00027969,2]
[338915552,1727071773431,-500.0,0.00027969,2]
[338915553,1727071773453,-500.0,0.00027969,2]
[338915554,1727071773474,-500.0,0.00027969,2]
[338915555,1727071773500,-500.0,0.00027969,2]
[338915556,1727071773523,-231.07625114,0.00027969,2]
[338915557,1727071773545,-500.0,0.00027969,2]
[338915558,1727071773566,-500.0,0.00027969,2]
[338915559,1727071773587,-500.0,0.00027969,2]
[338915560,1727071773609,-500.0,0.00027969,2]
[338915561,1727071773630,-500.0,0.00027969,2]
[338915562,1727071773651,-500.0,0.00027969,2]
[338915563,1727071773672,-3737.56193515,0.0002797,2]
[338915711,1727071838832,-300.0,0.00027969,2]
[338915713,1727071838842,-300.0,0.00027969,2]
[338915715,1727071838851,-6951.02937455,0.0002797,2]
[338915716,1727071838861,-500.0,0.00028,5]
[338915718,1727071838870,-511.9119689,0.00028,5]
[338915720,1727071838880,-249.88308309,0.00028,5]
[338915722,1727071838891,-500.0,0.00028,5]
[338915724,1727071838901,-175.042669,0.00028022,2]
[338915726,1727071838910,-165.662508,0.00028038,2]
[338915727,1727071838920,-2700.502625,0.0002819,2]
[338915729,1727071838929,-500.0,0.00028548,5]
[338915730,1727071838939,-501.75044568,0.00028548,5]
[338915732,1727071838949,-502.49,0.00029027,2]
[338915734,1727071838958,-890.83649875,0.0003,3]
[338915736,1727071838968,-2146.34773109,0.00030043,2]
[338915738,1727071838977,-1000.0,0.00030143,7]
[338915739,1727071838987,-535.9242344,0.00030143,7]
[338915741,1727071838996,-151.0,0.00030144,7]
[338915743,1727071839005,-151.0,0.00030144,7]
[338915745,1727071839015,-167.857,0.00030144,25]
[338915747,1727071839025,-420.0,0.00030208,2]
[338915749,1727071839034,-506.12218503,0.000304,5]
[338915751,1727071839044,-420.0,0.00030766,2]
[338915752,1727071839053,-514.43402254,0.0003082,5]
[338915753,1727071839063,-500.0,0.0003082,5]
[338915754,1727071839073,-500.0,0.0003082,5]
[338915755,1727071839082,-500.0,0.0003082,5]
[338915756,1727071839091,-500.0,0.00031,5]
[338915757,1727071839101,-500.0,0.00031,5]
[338915758,1727071839111,-501.24382593,0.00031368,5]
[338915759,1727071839120,-166.620008,0.00031524,2]
[338915760,1727071839130,-572.63685201,0.00031548,5]
[338915761,1727071839142,-151.0,0.00031635,7]
[338915762,1727071839152,-2146.34773107,0.00031737,2]
[338915763,1727071839161,-151.0,0.0003197,7]
[338915764,1727071839170,-151.0,0.0003198,7]
[338915765,1727071839179,-151.0,0.0003198,7]
[338915766,1727071839188,-151.0,0.0003199,7]
[338915767,1727071839197,-151.0,0.0003199,7]
[338915768,1727071839207,-151.0,0.00031999,7]
[338915769,1727071839216,-151.0,0.00032,7]
[338915770,1727071839225,-269.23822917,0.00032261,7]
[338915771,1727071839234,-480.0,0.00032625,2]
[338915772,1727071839243,-151.0,0.00032986,7]
[338915773,1727071839252,-150.0,0.000331,2]
[338915774,1727071839261,-500.0,0.00033165,2]
[338915775,1727071839273,-150.0,0.00033254,14]
[338915776,1727071839287,-150.0,0.00033254,14]
[338915777,1727071839301,-200.0,0.00033254,14]
[338915778,1727071839315,-2146.34773107,0.00033431,2]
[338915779,1727071839327,-587.0,0.00033843,2]
[338915780,1727071839339,-151.0,0.00034338,15]
[338915781,1727071839352,-2146.34773107,0.00035125,2]
[338915782,1727071839364,-500.0,0.00035405,7]
[338915783,1727071839379,-500.0,0.00035405,7]
[338915784,1727071839396,-359.00847235,0.00035405,7]
[338915785,1727071839409,-1720.974,0.00035406,2]
[338915786,1727071839423,-728.667603,0.00035616,120]
[338915787,1727071839439,-400.0,0.00035616,2]
[338915788,1727071839452,-151.0,0.00035689,15]
[338915789,1727071839464,-500.0,0.00035972,10]
[338915790,1727071839477,-500.0,0.00036794,10]
[338915791,1727071839489,-2146.34773107,0.00036818,2]
[338915792,1727071839502,-151.0,0.00037041,15]
[338915793,1727071839515,-600.0,0.00037141,120]
[338915794,1727071839527,-609.86082968,0.00037141,120]
[338915795,1727071839538,-363.0,0.00037227,2]
[338915796,1727071839550,-1568.50148952,0.0003738,48]
[338915797,1727071839562,-686.889,0.0003738,48]
[338915798,1727071839573,-152.43480147,0.00037401,21]
[338915799,1727071839585,-500.0,0.00037616,10]
[338915800,1727071839598,-534.73429431,0.00038,120]
[338915801,1727071839610,-500.0,0.00038,120]
[338915802,1727071839623,-500.0,0.00038,120]
[338915803,1727071839636,-7140.47594759,0.00038083,2]
[338915804,1727071839650,-158.47209938,0.00038136,2]
[338915805,1727071839663,-1000.0,0.00038146,2]
[338915806,1727071839673,-601.31,0.00038226,3]
[338915807,1727071839683,-501.09,0.00038226,3]
[338915808,1727071839694,-417.57,0.00038226,3]
[338915809,1727071839705,-347.98,0.00038226,3]
[338915810,1727071839716,-289.98,0.00038226,3]
[338915811,1727071839728,-241.65,0.00038226,3]
[338915812,1727071839741,-167.36745629,0.00038226,3]
[338915813,1727071839838,-129.20254371,0.00038226,3]
[338915814,1727071839849,-201.38,0.00038226,3]
[338915815,1727071839861,-167.81,0.00038226,3]
[338915816,1727071839872,-247.14,0.00038226,3]
[338915817,1727071839882,-839.09,0.00038226,3]
[338915818,1727071839894,-205.95,0.00038226,3]
[338915819,1727071839905,-446.3811943,0.00038235,15]
[338915820,1727071839916,-629.2524098,0.00038235,15]
[338915821,1727071839928,-405.64620814,0.00038235,15]
[338915822,1727071839939,-7183.94694698,0.00038236,5]
[338915823,1727071839957,-121858.76860102,0.00038236,5]
[338915824,1727071839968,-19832.1901721,0.00038236,5]
[338915825,1727071839980,-61910.44507715,0.00038246,60]
[338915826,1727071839991,-372.57294191,0.00038246,2]
[338915827,1727071840002,-1113.81529106,0.00038256,2]
[338915828,1727071840012,-1531.98886274,0.00038256,120]
[338915829,1727071840023,-500.0,0.00038273,5]
[338915830,1727071840036,-150.112235,0.000383,8]
[338915831,1727071840047,-500.0,0.000383,2]
[338915832,1727071840057,-370.89136518,0.000383,120]
[338915833,1727071840068,-500.0,0.000383,120]
[338915834,1727071840079,-500.0,0.000383,120]
[338915835,1727071840090,-500.0,0.000383,120]
[338915836,1727071840102,-500.0,0.000383,120]
[338915837,1727071840112,-500.0,0.000383,120]
[338915838,1727071840123,-500.0,0.000383,120]
[338915839,1727071840134,-500.0,0.000383,120]
[338915841,1727071840146,-500.0,0.000383,120]
[338915842,1727071840157,-500.0,0.000383,120]
[338915843,1727071840167,-500.0,0.000383,120]
[338915844,1727071840178,-172056.954065,0.00038336,5]
[338915845,1727071840188,-33053.6502869,0.00038336,5]
[338915847,1727071840199,-725.027807,0.00038336,14]
[338915848,1727071840210,-725.027807,0.00038336,14]
[338915850,1727071840221,-151.0,0.00038336,14]
[338915852,1727071840232,-151.0,0.00038336,14]
[338915853,1727071840243,-151.0,0.00038336,14]
[338915854,1727071840255,-151.0,0.00038336,14]
[338915856,1727071840265,-151.0,0.00038336,14]
[338915857,1727071840274,-151.0,0.00038336,14]
[338915859,1727071840383,-151.0,0.0003834,14]
[338915860,1727071840400,-3000.0,0.00038345,120]
[338915861,1727071840409,-59496.5705164,0.00038346,5]
[338915862,1727071840422,-725.027807,0.00038346,14]
[338915863,1727071840431,-5000.0,0.00038346,60]
[338915865,1727071840440,-725.027807,0.00038346,14]
[338915866,1727071840449,-5018.964578,0.00038346,60]
[338915868,1727071840460,-159.50248,0.00038346,14]
[338915870,1727071840469,-213.346863,0.00038346,14]
[338915871,1727071840478,-151.0,0.00038346,14]
[338915872,1727071840487,-151.0,0.00038346,14]
[338915873,1727071840498,-151.0,0.00038346,14]
[338915874,1727071840508,-151.0,0.00038346,14]
[338915875,1727071840517,-151.0,0.00038346,14]
[338915876,1727071840527,-151.0,0.00038346,14]
[338915877,1727071840536,-274.331226,0.00038346,14]
[338915878,1727071840545,-239.586017,0.00038346,14]
[338915879,1727071840554,-151.0,0.00038346,14]
[338915880,1727071840564,-151.0,0.00038346,14]
[338915881,1727071840573,-151.0,0.00038346,14]
[338915882,1727071840583,-151.0,0.00038346,14]
[338915883,1727071840592,-151.0,0.00038346,14]
[338915884,1727071840601,-961.97711108,0.00038355,2]
[338915885,1727071840611,-501.68595122,0.00038356,120]
[338915886,1727071840620,-501.79274757,0.00038356,120]
[338915887,1727071840629,-503.22148559,0.00038356,120]
[338915888,1727071840640,-500.0,0.00038356,120]
[338915889,1727071840649,-151.0,0.00038356,14]
[338915890,1727071840658,-500.0,0.00038356,120]
[338915891,1727071840667,-500.0,0.00038356,120]
[338915892,1727071840676,-151.0,0.00038356,14]
[338915893,1727071840685,-500.0,0.00038356,120]
[338915894,1727071840694,-500.0,0.00038356,120]
[338915895,1727071840704,-508.4036941,0.00038356,120]
[338915896,1727071840713,-503.69355808,0.00038356,120]
[338915897,1727071840722,-503.81401837,0.00038356,120]
[338915898,1727071840732,-500.0,0.00038356,120]
[338915899,1727071840741,-502.16743908,0.00038356,120]
[338915900,1727071840750,-517.76378201,0.00038356,120]
[338915901,1727071840759,-505.50311452,0.00038356,120]
[338915902,1727071840768,-517.97843166,0.00038356,120]
[338915903,1727071840777,-500.0,0.00038356,120]
[338915904,1727071840787,-500.0,0.00038356,120]
[338915905,1727071840796,-500.0,0.00038356,120]
[338915906,1727071840805,-500.0,0.00038356,120]
[338915907,1727071840814,-500.0,0.00038356,120]
[338915908,1727071840823,-500.0,0.00038356,120]
[338915909,1727071840832,-500.0,0.00038356,120]
[338915910,1727071840841,-500.0,0.00038356,120]
[338915911,1727071840850,-161.04592514,0.00038356,120]
[338915912,1727071840859,-500.0,0.00038356,120]
[338915913,1727071840868,-500.0,0.00038356,120]
[338915914,1727071840877,-500.0,0.00038356,120]
[338915915,1727071840886,-500.0,0.00038356,120]
[338915916,1727071840899,-500.0,0.00038356,30]
[338915917,1727071840916,-500.0,0.00038356,120]
[338915918,1727071840925,-500.0,0.00038356,120]
[338915919,1727071840935,-500.0,0.00038356,120]
[338915920,1727071840944,-506.63179636,0.00038356,120]
[338915921,1727071840953,-500.0,0.00038356,120]
[338915922,1727071840962,-500.0,0.00038356,120]
[338915923,1727071840971,-500.0,0.00038356,120]
[338915924,1727071840980,-500.0,0.00038356,120]
[338915925,1727071840989,-500.0,0.00038356,120]
[338915926,1727071840999,-314.47374365,0.00038356,120]
[338915927,1727071841008,-500.0,0.00038356,120]
[338915928,1727071841017,-500.0,0.00038356,120]
[338915929,1727071841027,-500.0,0.00038356,120]
[338915930,1727071841036,-500.0,0.00038356,7]
[338915931,1727071841045,-501.33391978,0.00038356,10]
[338915932,1727071841054,-500.0,0.00038356,120]
[338915933,1727071841063,-501.94914337,0.00038356,120]
[338915934,1727071841072,-504.13631225,0.00038356,120]
[338915935,1727071841081,-500.0,0.00038356,120]
[338915936,1727071841091,-500.0,0.00038356,120]
[338915937,1727071841100,-500.0,0.00038356,120]
[338915938,1727071841109,-500.0,0.00038356,120]
[338915939,1727071841118,-500.0,0.00038356,120]
[338915940,1727071841127,-506.49038653,0.00038356,120]
[338915941,1727071841136,-201.6596905,0.00038356,120]
[338915942,1727071841154,-500.0,0.00038356,120]
[338915943,1727071841162,-503.74867864,0.00038356,120]
[338915944,1727071841171,-502.22426957,0.00038356,120]
[338915945,1727071841180,-509.58992641,0.00038356,120]
[338915946,1727071841189,-500.0,0.00038356,120]
[338915947,1727071841198,-500.0,0.00038356,120]
[338915948,1727071841207,-502.33855956,0.00038356,120]
[338915949,1727071841217,-500.0,0.00038356,120]
[338915950,1727071841226,-500.0,0.00038356,120]
[338915951,1727071841235,-223.30305116,0.00038356,120]
[338915952,1727071841244,-500.0,0.00038356,120]
[338915953,1727071841254,-500.0,0.00038356,120]
[338915954,1727071841263,-500.0,0.00038356,120]
[338915955,1727071841272,-500.0,0.00038356,120]
[338915956,1727071841282,-500.0,0.00038356,120]
[338915957,1727071841291,-500.0,0.00038356,120]
[338915958,1727071841300,-500.0,0.00038356,120]
[338915959,1727071841309,-500.0,0.00038356,120]
[338915960,1727071841319,-500.0,0.00038356,120]
[338915961,1727071841328,-500.0,0.00038356,120]
[338915962,1727071841337,-510.3024606,0.00038356,120]
[338915963,1727071841347,-500.0,0.00038356,120]
[338915964,1727071841356,-500.0,0.00038356,120]
[338915965,1727071841365,-500.5044101,0.00038356,120]
[338915966,1727071841374,-500.0,0.00038356,120]
[338915967,1727071841383,-500.0,0.00038356,120]
[338915968,1727071841399,-547.95526067,0.00038356,120]
[338915969,1727071841408,-500.0,0.00038356,120]
[338915970,1727071841419,-500.53937952,0.00038356,120]